bitfinex-derivatives/quotes_BTCF0:USTF0_20241010
["timestamp","ask_amount","ask_price","bid_price","bid_amount"]
[1728580037367,0.12786366,60213.0,60212.0,0.083117]
[1728580037568,0.08657658,60213.0,60212.0,0.083117]
[1728580037771,0.08657658,60213.0,60212.0,0.085117]
[1728580037984,0.26541842,60213.0,60212.0,0.085117]
[1728580038161,0.00168,60226.0,60212.0,0.892]
[1728580038467,0.05961908,60230.0,60229.0,0.083095]
[1728580038768,0.08309,60233.0,60232.0,0.083091]
[1728580038974,0.08309,60233.0,60225.0,0.3608]
[1728580039163,0.083094,60230.0,60228.0,0.083096]
[1728580039562,0.097094,60230.0,60229.0,0.001]
[1728580039761,0.014,60230.0,60229.0,0.084095]
[1728580039964,0.097093,60230.0,60229.0,0.084095]
[1728580040565,0.014,60230.0,60229.0,0.084095]
[1728580040868,0.097093,60230.0,60229.0,0.001]
[1728580041069,0.570893,60230.0,60229.0,0.001]
[1728580041375,0.083106,60221.0,60220.0,0.3608]
[1728580041577,0.493106,60221.0,60220.0,0.3608]
[1728580042677,0.493106,60221.0,60220.0,0.3638]
[1728580043376,0.499106,60221.0,60220.0,0.3618]
[1728580043576,0.379106,60221.0,60220.0,0.444907]
[1728580043780,0.096106,60221.0,60220.0,0.445907]
[1728580044779,0.386106,60221.0,60220.0,0.445907]
[1728580046978,0.013,60221.0,60220.0,0.445907]
[1728580047678,0.013,60221.0,60220.0,0.806707]
[1728580047980,0.29,60234.0,60232.0,0.083091]
[1728580047981,0.08309,60233.0,60232.0,0.083091]
[1728580049177,0.29,60234.0,60233.0,0.083089]
[1728580049372,0.373088,60234.0,60233.0,0.083089]
[1728580049673,0.083084,60238.0,60232.0,0.3618]
[1728580049879,0.373084,60238.0,60237.0,0.083082]
[1728580050668,0.29,60238.0,60237.0,0.083082]
[1728580051074,0.298,60238.0,60237.0,0.083082]
[1728580051271,0.008,60238.0,60237.0,0.443882]
[1728580051676,0.083081,60239.0,60237.0,0.3608]
[1728580051875,0.29,60242.0,60241.0,0.083078]
[1728580052071,0.373077,60242.0,60241.0,0.083078]
[1728580052267,0.083076,60243.0,60242.0,0.083077]
[1728580053180,0.3755621,60247.0,60237.0,0.3628]
[1728580053479,0.0024911,60247.0,60246.0,0.083071]
[1728580053977,0.0855611,60247.0,60246.0,0.083071]
[1728580054481,0.0024911,60247.0,60246.0,0.373071]
[1728580054784,0.0084911,60247.0,60246.0,0.084071]
[1728580055174,0.3815611,60247.0,60246.0,0.084071]
[1728580055374,0.0915611,60247.0,60246.0,0.084071]
[1728580055579,0.0915611,60247.0,60246.0,0.001]
[1728580055781,0.13067102,60247.0,60246.0,0.002]
[1728580055981,0.19895222,60247.0,60243.0,0.26384485]
[1728580056173,0.083074,60245.0,60244.0,0.083073]
[1728580056380,0.33475279,60245.0,60244.0,0.083073]
[1728580056779,0.33475279,60245.0,60243.0,0.22391427]
[1728580057092,0.083081,60240.0,60239.0,0.08308]
[1728580057275,0.52700534,60240.0,60239.0,0.08308]
[1728580057482,0.59522301,60240.0,60239.0,0.05625601]
[1728580057979,0.08309,60233.0,60232.0,0.083091]
[1728580058179,0.26655112,60233.0,60232.0,0.083091]
[1728580058482,0.083094,60230.0,60229.0,0.083093]
[1728580058678,0.52705092,60230.0,60229.0,0.083093]
[1728580059181,0.44395692,60230.0,60229.0,0.083093]
[1728580059687,0.26655412,60230.0,60223.0,0.4218]
[1728580059879,0.083099,60227.0,60226.0,0.083098]
[1728580060080,0.20693952,60227.0,60226.0,0.083098]
[1728580060286,0.26656012,60227.0,60226.0,0.083098]
[1728580060481,0.26656012,60227.0,60223.0,0.061]
[1728580060482,0.083102,60224.0,60223.0,0.144102]
[1728580060684,0.62736312,60224.0,60223.0,0.144102]
[1728580060888,0.62736312,60224.0,60212.0,0.6508]
[1728580061080,0.21152262,60214.0,60213.0,0.083117]
[1728580061287,0.39498374,60214.0,60213.0,0.083117]
[1728580061484,0.18346112,60214.0,60213.0,0.083117]
[1728580063093,0.18346112,60214.0,60212.0,0.005]
[1728580063389,0.18346112,60213.0,60212.0,0.005]
[1728580063591,0.18346112,60213.0,60212.0,0.738918]
[1728580063787,0.10546112,60213.0,60212.0,0.733918]
[1728580063988,0.3608,60218.0,60217.0,0.083111]
[1728580065195,0.3608,60218.0,60217.0,0.04979353]
[1728580065395,0.3608,60218.0,60217.0,0.002]
[1728580065799,0.44391,60218.0,60217.0,0.002]
[1728580066594,0.44691,60218.0,60217.0,0.085111]
[1728580067695,0.44691,60218.0,60217.0,0.083111]
[1728580067889,0.44691,60218.0,60217.0,0.084111]
[1728580068696,0.44691,60218.0,60217.0,0.083111]
[1728580068894,0.083113,60216.0,60215.0,0.04979353]
[1728580069095,0.29,60216.0,60214.0,0.04979091]
[1728580069697,0.083116,60214.0,60213.0,0.083117]
[1728580070210,0.083117,60213.0,60212.0,0.08282213]
[1728580070399,0.083116,60214.0,60212.0,0.08282213]
[1728580070599,0.083118,60212.0,60211.0,0.08282213]
[1728580070802,0.733918,60212.0,60211.0,0.2067922]
[1728580071205,0.843918,60212.0,60211.0,0.08282213]
[1728580071728,0.843918,60212.0,60211.0,0.20679467]
[1728580071895,0.843918,60212.0,60211.0,0.12397254]
[1728580072100,0.843918,60212.0,60211.0,0.12697254]
[1728580073107,0.38570672,60212.0,60211.0,0.35744847]
[1728580073309,0.39402272,60212.0,60211.0,0.35744847]
[1728580073508,0.39402272,60212.0,60211.0,0.36044847]
[1728580073805,0.31090472,60212.0,60211.0,0.36044847]
[1728580074105,0.29,60216.0,60213.0,0.083117]
[1728580074106,0.083116,60214.0,60213.0,0.083117]
[1728580074418,0.083116,60214.0,60213.0,0.35444547]
[1728580074910,0.183116,60214.0,60213.0,0.27132847]
[1728580075410,0.183116,60214.0,60213.0,0.27232847]
[1728580076107,0.183116,60214.0,60213.0,0.27332847]
[1728580076314,0.183116,60214.0,60213.0,0.12597254]
[1728580076709,0.183116,60214.0,60203.0,0.11547105]
[1728580076710,0.083122,60209.0,60208.0,0.083124]
[1728580076909,0.67571511,60209.0,60208.0,0.55385068]
[1728580077210,0.67571511,60209.0,60208.0,0.26871647]
[1728580077805,0.79571511,60209.0,60208.0,0.26871647]
[1728580078110,1.89499511,60209.0,60208.0,0.27471647]
[1728580078309,0.083131,60203.0,60200.0,0.11547105]
[1728580078508,0.083132,60202.0,60201.0,0.42626717]
[1728580078712,0.733932,60202.0,60201.0,0.25928844]
[1728580078907,0.733932,60202.0,60201.0,0.14381739]
[1728580079610,0.083142,60195.0,60194.0,0.11547105]
[1728580079813,0.733942,60195.0,60194.0,0.14301771]
[1728580080216,0.733942,60195.0,60194.0,0.14302555]
[1728580080713,0.734942,60195.0,60194.0,0.32310932]
[1728580080905,0.7518,60195.0,60192.0,0.11612947]
[1728580081219,0.7518,60195.0,60191.0,0.11612947]
[1728580081220,0.083146,60192.0,60191.0,0.11612947]
[1728580081409,0.373146,60192.0,60191.0,0.16442111]
[1728580081711,0.373146,60192.0,60191.0,0.29675043]
[1728580081918,0.373146,60192.0,60191.0,0.16442111]
[1728580082116,0.083147,60191.0,60190.0,4e-05]
[1728580082514,1.281547,60191.0,60190.0,0.1030655]
[1728580082719,0.083161,60181.0,60180.0,0.083162]
[1728580083017,0.733961,60181.0,60180.0,0.24804159]
[1728580083222,0.733961,60181.0,60180.0,0.083162]
[1728580083415,0.083156,60185.0,60184.0,0.083157]
[1728580083617,0.3608,60186.0,60185.0,0.083156]
[1728580084622,0.3608,60186.0,60181.0,0.08316]
[1728580084623,0.6508,60186.0,60181.0,0.08316]
[1728580084919,0.29,60179.0,60177.0,0.13232932]
[1728580085111,0.29,60179.0,60177.0,0.083167]
[1728580085312,0.29,60179.0,60178.0,0.16490178]
[1728580085313,0.373164,60179.0,60178.0,0.16490178]
[1728580086311,0.373164,60179.0,60178.0,0.24806678]
[1728580086511,0.733964,60179.0,60178.0,0.16490178]
[1728580086720,0.2909877,60179.0,60178.0,0.56791672]
[1728580086924,0.001,60179.0,60178.0,0.43537966]
[1728580087112,0.001,60179.0,60178.0,0.38067652]
[1728580087318,0.001,60179.0,60178.0,0.24806678]
[1728580087523,0.001,60179.0,60178.0,0.24677576]
[1728580087820,0.084164,60179.0,60178.0,0.17461076]
[1728580088009,0.084164,60179.0,60178.0,0.25777576]
[1728580088217,0.084164,60179.0,60178.0,0.17461076]
[1728580088414,0.374164,60179.0,60178.0,0.094165]
[1728580088614,0.374164,60179.0,60178.0,0.17466862]
[1728580088819,0.374164,60179.0,60178.0,0.011]
[1728580089114,0.374164,60179.0,60178.0,0.25783362]
[1728580089427,0.001,60179.0,60178.0,0.25783362]
[1728580090811,0.191,60179.0,60178.0,0.25783362]
[1728580091024,0.191,60179.0,60178.0,0.39878084]
[1728580091927,0.3608,60179.0,60178.0,0.53138903]
[1728580092117,0.3608,60179.0,60178.0,0.39883358]
[1728580092627,0.273162,60181.0,60178.0,0.39883358]
[1728580092827,0.083164,60180.0,60179.0,0.38783158]
[1728580093328,0.19,60181.0,60179.0,0.25903669]
[1728580093527,0.3608,60186.0,60180.0,0.25903669]
[1728580093717,0.443947,60191.0,60189.0,0.08315]
[1728580093916,0.443947,60191.0,60190.0,0.25862878]
[1728580093917,0.633947,60191.0,60190.0,0.25862878]
[1728580095922,0.634947,60191.0,60190.0,0.34877778]
[1728580096122,0.444947,60191.0,60190.0,0.26562878]
[1728580096327,0.634947,60191.0,60190.0,0.26562878]
[1728580096634,0.635947,60191.0,60190.0,0.1336286]
[1728580096929,0.635947,60191.0,60190.0,0.23304615]
[1728580097116,0.635947,60191.0,60190.0,0.2330455]
[1728580097722,0.635947,60191.0,60190.0,0.1336286]
[1728580097923,0.635947,60191.0,60190.0,0.23304235]
[1728580098127,0.635947,60191.0,60190.0,0.31619135]
[1728580098325,0.635947,60191.0,60190.0,0.2167776]
[1728580098529,0.635947,60191.0,60190.0,0.31618969]
[1728580098725,0.635947,60191.0,60190.0,0.2167776]
[1728580099321,0.635947,60191.0,60190.0,0.35691736]
[1728580099636,0.085147,60191.0,60190.0,0.35691736]
[1728580100129,0.19249338,60195.0,60194.0,0.083143]
[1728580100130,0.08563538,60195.0,60194.0,0.083143]
[1728580100433,0.27563538,60195.0,60194.0,0.1176286]
[1728580100630,0.37563538,60195.0,60194.0,0.1176286]
[1728580101337,0.37563538,60195.0,60194.0,0.005]
[1728580101636,0.37563538,60195.0,60194.0,0.009]
[1728580101837,0.73643538,60195.0,60194.0,0.009]
[1728580105931,0.3608,60180.0,60177.0,0.08290373]
[1728580106135,0.3608,60180.0,60151.0,0.13260819]
[1728580106136,0.16634,60175.0,60156.0,0.083196]
[1728580106442,0.16634,60175.0,60147.0,0.2594]
[1728580106443,0.3608,60157.0,60147.0,0.2594]
[1728580106633,0.083196,60156.0,60155.0,0.083197]
[1728580106838,0.083196,60156.0,60155.0,0.10303476]
[1728580107635,0.083203,60151.0,60150.0,0.005]
[1728580107842,0.634003,60151.0,60150.0,0.1075557]
[1728580108240,0.634003,60151.0,60150.0,0.0077727]
[1728580108545,0.083204,60150.0,60149.0,0.1]
[1728580108841,0.273204,60150.0,60149.0,0.1]
[1728580109142,0.273204,60150.0,60149.0,0.1801208]
[1728580109342,0.19,60150.0,60149.0,0.48229858]
[1728580109636,0.273204,60150.0,60149.0,0.48229858]
[1728580110141,0.273204,60150.0,60149.0,0.48230288]
[1728580110538,0.281204,60150.0,60149.0,0.48230288]
[1728580110732,0.281204,60150.0,60149.0,0.40217778]
[1728580111131,0.3608,60151.0,60149.0,0.48209497]
[1728580111339,0.3608,60151.0,60150.0,0.46529897]
[1728580111640,0.444003,60151.0,60150.0,0.46529897]
[1728580111841,0.00196,60157.0,60156.0,0.083196]
[1728580112046,0.273193,60159.0,60158.0,0.083193]
[1728580112340,0.273193,60159.0,60158.0,0.5979438]
[1728580112543,0.273193,60159.0,60158.0,0.46528797]
[1728580112740,0.273193,60159.0,60158.0,0.38209497]
[1728580112741,0.19,60159.0,60158.0,0.38209497]
[1728580112940,0.19,60159.0,60158.0,0.46528797]
[1728580112941,0.273192,60159.0,60158.0,0.46528797]
[1728580113143,0.273192,60159.0,60158.0,0.5979438]
[1728580113338,0.273192,60159.0,60158.0,0.46528797]
[1728580113739,0.273192,60159.0,60158.0,0.38209497]
[1728580113941,0.278192,60159.0,60158.0,0.25590901]
[1728580114247,0.286192,60159.0,60158.0,0.32995925]
[1728580114451,0.356192,60159.0,60158.0,0.32995925]
[1728580114942,0.351192,60159.0,60158.0,0.32895925]
[1728580115335,1.449872,60159.0,60158.0,0.24913402]
[1728580115548,1.449872,60159.0,60157.0,0.10651879]
[1728580115549,0.083193,60158.0,60157.0,0.10651879]
[1728580115739,1.061873,60158.0,60149.0,0.1]
[1728580115947,0.994804,60150.0,60149.0,0.1]
[1728580116245,1.104804,60150.0,60149.0,0.1]
[1728580116644,0.994804,60150.0,60149.0,0.1]
[1728580117037,0.997804,60150.0,60149.0,0.1]
[1728580117445,0.807804,60150.0,60149.0,0.1]
[1728580117642,0.997804,60150.0,60149.0,0.1]
[1728580117950,0.998804,60150.0,60149.0,0.1]
[1728580118344,1.006804,60150.0,60149.0,0.101]
[1728580118841,1.505564,60150.0,60149.0,0.1]
[1728580119152,2.225564,60150.0,60149.0,0.101]
[1728580119456,1.627564,60150.0,60149.0,0.102]
[1728580119650,2.227564,60150.0,60149.0,0.102]
[1728580120250,2.228564,60150.0,60149.0,0.102]
[1728580120750,1.628564,60150.0,60149.0,0.101]
[1728580120953,1.129804,60150.0,60149.0,0.101]
[1728580121147,1.134804,60150.0,60149.0,0.101]
[1728580121340,1.140804,60150.0,60149.0,0.101]
[1728580121951,2.239564,60150.0,60149.0,0.101]
[1728580122540,1.639564,60150.0,60149.0,0.101]
[1728580124045,1.140804,60150.0,60149.0,0.0822]
[1728580124246,1.140804,60150.0,60149.0,0.165405]
[1728580124247,0.026,60150.0,60149.0,0.165405]
[1728580124443,0.19,60157.0,60155.0,0.083196]
[1728580124653,0.3,60157.0,60156.0,0.083196]
[1728580124848,0.273194,60157.0,60156.0,0.083196]
[1728580125956,0.19,60157.0,60156.0,0.083196]
[1728580126248,0.195,60157.0,60156.0,0.083196]
[1728580126451,0.195,60157.0,60155.0,0.001]
[1728580126752,0.083196,60156.0,60155.0,0.001]
[1728580126952,0.192,60157.0,60153.0,0.083199]
[1728580127153,0.083198,60154.0,60153.0,0.083199]
[1728580127452,0.083198,60154.0,60150.0,0.0741]
[1728580127649,0.083201,60152.0,60151.0,0.0748]
[1728580127851,0.273201,60152.0,60151.0,0.0748]
[1728580128952,0.383201,60152.0,60151.0,0.0748]
[1728580129141,0.383201,60152.0,60151.0,0.0768]
[1728580129346,0.193201,60152.0,60151.0,0.0768]
[1728580130260,0.194201,60152.0,60151.0,0.0768]
[1728580130648,0.195201,60152.0,60151.0,0.0748]
[1728580130944,0.194201,60152.0,60151.0,0.0748]
[1728580131261,0.083204,60150.0,60149.0,0.0812]
[1728580131446,0.383204,60150.0,60149.0,0.0812]
[1728580131648,1.481964,60150.0,60149.0,0.0812]
[1728580131949,0.881964,60150.0,60149.0,0.0812]
[1728580132356,0.384204,60150.0,60149.0,0.0812]
[1728580132954,0.882964,60150.0,60149.0,0.0812]
[1728580133261,0.384204,60150.0,60149.0,0.0812]
[1728580133561,0.385204,60150.0,60149.0,0.0812]
[1728580133950,0.195204,60150.0,60149.0,0.164405]
[1728580134654,0.195204,60150.0,60149.0,0.0812]
[1728580135952,1.293964,60150.0,60149.0,0.0812]
[1728580136351,0.693964,60150.0,60149.0,0.0812]
[1728580136960,0.195204,60150.0,60149.0,0.0812]
[1728580139770,0.085204,60150.0,60149.0,0.0812]
[1728580140665,0.195204,60150.0,60149.0,0.0812]
[1728580141167,1.293964,60150.0,60149.0,0.0812]
[1728580141363,0.195204,60150.0,60149.0,0.0812]
[1728580143067,0.085204,60150.0,60149.0,0.0812]
[1728580143259,0.085204,60150.0,60149.0,0.164405]
[1728580143961,0.085204,60150.0,60149.0,0.0812]
[1728580145062,0.205204,60150.0,60149.0,0.0812]
[1728580146664,0.083214,60143.0,60142.0,0.0079816]
[1728580146858,0.083214,60143.0,60142.0,0.0911966]
[1728580146859,0.50749099,60143.0,60142.0,0.0911966]
[1728580147059,0.56216319,60143.0,60142.0,0.0911966]
[1728580147263,0.13417611,60143.0,60142.0,0.7799966]
[1728580147469,0.08321,60146.0,60145.0,0.08321]
[1728580147667,0.14782937,60150.0,60142.0,0.1988216]
[1728580147864,0.083206,60149.0,60148.0,0.083205]
[1728580148459,0.075806,60149.0,60148.0,0.083205]
[1728580149468,0.36268001,60152.0,60151.0,0.083203]
[1728580149659,0.083201,60153.0,60152.0,0.083201]
[1728580150457,0.083207,60149.0,60148.0,0.083206]
[1728580150661,0.083207,60149.0,60146.0,0.0729]
[1728580150870,0.083214,60143.0,60142.0,0.0079816]
[1728580151471,0.19,60146.0,60141.0,0.50084]
[1728580151657,0.273215,60142.0,60141.0,0.583215]
[1728580151857,0.273215,60142.0,60141.0,0.5]
[1728580152469,0.634015,60142.0,60141.0,0.5]
[1728580154877,0.634015,60142.0,60141.0,0.507]
[1728580156671,0.634015,60142.0,60141.0,0.590216]
[1728580156967,0.634015,60142.0,60141.0,0.507]
[1728580157371,0.637015,60142.0,60141.0,0.5]
[1728580157569,0.637015,60142.0,60141.0,1.272056]
[1728580157570,0.003,60142.0,60141.0,1.272056]
[1728580157769,0.444007,60148.0,60147.0,0.083208]
[1728580158076,0.634007,60148.0,60147.0,0.083208]
[1728580158371,0.083214,60145.0,60141.0,0.508]
[1728580158574,0.083215,60142.0,60141.0,0.583216]
[1728580158770,0.088215,60142.0,60141.0,0.5]
[1728580159165,0.083215,60142.0,60141.0,0.5]
[1728580159364,0.183215,60142.0,60141.0,0.5]
[1728580159877,0.257515,60142.0,60141.0,0.5]
[1728580160075,0.258515,60142.0,60141.0,0.5]
[1728580160568,0.259515,60142.0,60141.0,0.5]
[1728580161265,0.085215,60142.0,60141.0,0.5]
[1728580161461,0.084215,60142.0,60141.0,0.5]
[1728580161762,0.086215,60142.0,60141.0,0.5]
[1728580162174,0.091215,60142.0,60141.0,0.501]
[1728580162566,0.091215,60142.0,60141.0,0.5]
[1728580162567,0.084215,60142.0,60141.0,0.5]
[1728580162766,0.089215,60142.0,60141.0,0.501]
[1728580163174,0.185215,60142.0,60141.0,0.501]
[1728580163371,0.189215,60142.0,60141.0,0.501]
[1728580163979,0.187215,60142.0,60141.0,0.5]
[1728580164273,0.189215,60142.0,60141.0,0.5]
[1728580165467,0.380215,60142.0,60141.0,0.5]
[1728580165977,0.385215,60142.0,60141.0,0.501]
[1728580166373,0.385215,60142.0,60141.0,0.502]
[1728580168370,0.385215,60142.0,60115.0,0.083252]
[1728580168371,0.083252,60116.0,60115.0,0.083252]
[1728580168574,0.19,60116.0,60115.0,0.083252]
[1728580169174,0.083248,60119.0,60118.0,0.083248]
[1728580169375,0.273248,60119.0,60118.0,0.083248]
[1728580169780,0.373248,60119.0,60118.0,0.083248]
[1728580170084,0.083251,60117.0,60115.0,0.028]
[1728580170281,0.273251,60116.0,60115.0,0.014]
[1728580170785,0.083251,60116.0,60115.0,0.097252]
[1728580170972,0.44591301,60130.0,60115.0,1.09904]
[1728580170973,0.19249638,60129.0,60115.0,1.09904]
[1728580171173,0.083241,60125.0,60124.0,0.083239]
[1728580171484,0.00249638,60129.0,60128.0,0.083234]
[1728580171678,0.19249638,60129.0,60128.0,0.083234]
[1728580171878,0.19249638,60129.0,60128.0,0.582154]
[1728580172080,0.00249638,60129.0,60128.0,0.582154]
[1728580172277,0.00349638,60129.0,60128.0,0.582154]
[1728580172481,0.00349638,60129.0,60128.0,1.182154]
[1728580173586,0.00349638,60129.0,60128.0,1.186154]
[1728580173788,0.3608,60137.0,60128.0,1.376154]
[1728580173979,0.3608,60137.0,60136.0,0.083223]
[1728580174687,0.444022,60137.0,60136.0,0.083223]
[1728580175579,0.449022,60137.0,60136.0,0.083223]
[1728580175987,0.083228,60133.0,60132.0,0.083228]
[1728580176191,0.083232,60131.0,60130.0,0.083232]
[1728580177492,0.083232,60131.0,60130.0,0.085232]
[1728580177991,0.3628,60137.0,60130.0,0.002]
[1728580178281,0.083208,60147.0,60138.0,0.08322]
[1728580178282,0.08322,60139.0,60138.0,0.08322]
[1728580178687,0.27322,60139.0,60138.0,0.08322]
[1728580179091,0.3608,60134.0,60119.0,0.08291666]
[1728580179288,0.083254,60114.0,60106.0,0.1494]
[1728580179484,0.444057,60112.0,60106.0,0.1494]
[1728580180281,0.444057,60112.0,60106.0,0.0738]
[1728580180780,1.663137,60112.0,60111.0,0.01595]
[1728580180983,0.564057,60112.0,60111.0,0.01595]
[1728580181385,0.754057,60112.0,60111.0,0.01595]
[1728580181784,0.755057,60112.0,60111.0,0.02995]
[1728580182092,0.635057,60112.0,60111.0,0.02995]
[1728580182582,1.844137,60112.0,60111.0,0.02995]
[1728580182790,1.845137,60112.0,60111.0,0.02995]
[1728580182978,0.083268,60104.0,60099.0,0.0001]
[1728580183178,0.19,60102.0,60099.0,0.0001]
[1728580183378,0.19,60102.0,60099.0,0.083373]
[1728580183779,0.19,60102.0,60099.0,0.0001]
[1728580185189,0.076803,60100.0,60099.0,0.0081]
[1728580185587,0.076803,60100.0,60099.0,0.0171]
[1728580185984,0.076803,60100.0,60099.0,0.100375]
[1728580186489,0.077803,60100.0,60099.0,0.0161]
[1728580186891,0.077803,60100.0,60099.0,0.0081]
[1728580187197,0.09359456,60100.0,60099.0,0.0081]
[1728580187389,0.09359456,60100.0,60099.0,0.091375]
[1728580187992,0.28359456,60100.0,60099.0,0.091375]
[1728580188484,0.28359456,60100.0,60099.0,0.0081]
[1728580189384,0.38359456,60100.0,60099.0,0.0081]
[1728580190087,0.002,60100.0,60099.0,0.091375]
[1728580190485,0.002,60100.0,60099.0,0.165375]
[1728580190687,0.273259,60110.0,60099.0,0.165375]
[1728580190989,0.273259,60110.0,60109.0,0.083261]
[1728580191186,0.19,60110.0,60109.0,0.083261]
[1728580191397,0.273259,60110.0,60109.0,0.083261]
[1728580191603,0.19,60110.0,60109.0,0.083261]
[1728580191896,0.083266,60105.0,60104.0,0.444067]
[1728580192088,0.203266,60105.0,60104.0,0.444067]
[1728580192393,0.083266,60105.0,60104.0,0.444067]
[1728580192783,0.19,60107.0,60104.0,0.3608]
[1728580192982,0.19,60107.0,60106.0,0.083265]
[1728580193190,0.273264,60107.0,60106.0,0.083265]
[1728580194297,0.274264,60107.0,60106.0,0.083265]
[1728580195396,0.275264,60107.0,60106.0,0.091265]
[1728580195798,0.275264,60107.0,60106.0,0.008]
[1728580196000,0.385264,60107.0,60106.0,0.008]
[1728580198695,1.484384,60107.0,60106.0,0.008]
[1728580199607,0.083273,60100.0,60099.0,0.0001]
[1728580199898,0.08329,60088.0,60077.0,0.2232]
[1728580200098,0.63409,60088.0,60077.0,0.2232]
[1728580200305,0.63409,60088.0,60078.0,0.083302]
[1728580200489,0.63409,60088.0,60086.0,0.083292]
[1728580201188,0.63409,60088.0,60087.0,0.093291]
[1728580201700,0.4328,60093.0,60087.0,0.093291]
[1728580201998,0.36272001,60099.0,60090.0,0.083287]
[1728580202208,0.083279,60096.0,60095.0,0.083279]
[1728580202411,0.19,60096.0,60095.0,0.083279]
[1728580205200,0.083686,60091.0,60090.0,0.001]
[1728580205505,0.08329,60088.0,60087.0,0.3708]
[1728580205800,0.27329,60088.0,60087.0,0.3708]
[1728580206506,0.27429,60088.0,60087.0,0.3708]
[1728580206806,0.27429,60088.0,60076.0,0.3608]
[1728580207130,0.27429,60088.0,60053.0,0.11608333]
[1728580207131,0.083327,60061.0,60058.0,0.08291666]
[1728580207401,0.994931,60059.0,60056.0,0.083334]
[1728580207602,0.19,60057.0,60056.0,0.083334]
[1728580207794,0.7216,60059.0,60058.0,0.083331]
[1728580207995,0.7236,60059.0,60058.0,0.083331]
[1728580208205,1.41312,60059.0,60040.0,0.18241665]
[1728580208393,0.7216,60041.0,60021.0,0.14039311]
[1728580208702,0.3608,60031.0,60030.0,0.083369]
[1728580208908,0.3608,60043.0,60030.0,0.583129]
[1728580209098,0.3608,60043.0,60028.0,0.19]
[1728580209099,0.3608,60043.0,60042.0,0.083354]
[1728580209341,0.7216,60043.0,60031.0,0.19]
[1728580209596,0.7216,60043.0,60035.0,0.083363]
[1728580209597,0.3608,60036.0,60035.0,0.083363]
[1728580209998,0.3608,60036.0,60035.0,0.683363]
[1728580210203,0.3608,60036.0,60035.0,1.183083]
[1728580210692,0.3608,60036.0,60035.0,0.583083]
[1728580210897,0.3608,60036.0,60035.0,0.683363]
[1728580211499,0.3608,60036.0,60035.0,0.083363]
[1728580211707,0.3608,60036.0,60035.0,0.683363]
[1728580212102,0.3628,60043.0,60042.0,0.083354]
[1728580212416,0.3628,60043.0,60042.0,0.273354]
[1728580212417,0.3618,60043.0,60042.0,0.273354]
[1728580212597,0.3608,60043.0,60042.0,0.273354]
[1728580212800,0.3608,60050.0,60049.0,0.083344]
[1728580212999,0.3608,60050.0,60049.0,0.273344]
[1728580213599,0.3608,60055.0,60054.0,0.083337]
[1728580213801,0.3608,60061.0,60060.0,0.083329]
[1728580214897,0.3608,60061.0,60060.0,0.683329]
[1728580215207,0.3632988,60074.0,60073.0,0.083311]
[1728580215616,0.3608,60074.0,60073.0,0.273311]
[1728580215799,0.3608,60081.0,60080.0,0.083301]
[1728580216109,0.3608,60081.0,60080.0,0.273301]
[1728580216309,0.363,60086.0,60073.0,0.083311]
[1728580216310,0.3608,60086.0,60085.0,0.083294]
[1728580216696,0.3612,60091.0,60083.0,0.19]
[1728580216902,0.3612,60091.0,60090.0,0.083287]
[1728580217997,0.0004,60091.0,60090.0,1.543327]
[1728580218401,0.3608,60101.0,60092.0,0.083284]
[1728580218606,0.3608,60111.0,60110.0,0.083258]
[1728580218913,0.0024963,60114.0,60113.0,0.083255]
[1728580219504,0.3608,60123.0,60113.0,0.083255]
[1728580219707,0.46672,60145.0,60109.0,0.6708]
[1728580219708,0.29,60128.0,60116.0,0.29]
[1728580219911,0.29,60128.0,60125.0,0.083238]
[1728580219912,0.083235,60128.0,60125.0,0.083238]
[1728580220206,0.3608,60130.0,60129.0,0.068233]
[1728580220402,0.3608,60130.0,60124.0,0.08324]
[1728580220596,0.0004,60125.0,60124.0,0.08324]
[1728580220842,0.0004,60125.0,60124.0,0.5822]
[1728580221213,0.0004,60125.0,60124.0,1.1822]
[1728580221403,0.083213,60144.0,60124.0,1.1822]
[1728580221598,0.29249492,60146.0,60136.0,0.29]
[1728580221599,0.00249492,60146.0,60136.0,0.29]
[1728580221803,0.29249492,60146.0,60132.0,0.6508]
[1728580222003,0.00249492,60146.0,60142.0,0.083215]
[1728580222199,0.3608,60148.0,60143.0,0.083213]
[1728580222406,0.3608,60148.0,60136.0,0.29]
[1728580222603,0.0004,60137.0,60132.0,0.6508]
[1728580222934,0.0004,60137.0,60136.0,0.084223]
[1728580223304,0.291,60146.0,60136.0,0.084223]
[1728580223305,0.001,60146.0,60142.0,0.083215]
[1728580223504,0.001,60146.0,60136.0,1.38988]
[1728580223505,0.29,60146.0,60143.0,0.083213]
[1728580224011,0.29,60146.0,60145.0,0.083211]
[1728580224915,0.29,60146.0,60138.0,0.3608]
[1728580225105,0.2904,60139.0,60138.0,0.44402]
[1728580225815,0.083222,60137.0,60136.0,0.0034]
[1728580226110,0.2904,60137.0,60136.0,0.0024]
[1728580226504,0.734422,60137.0,60136.0,0.0024]
[1728580226816,0.6512,60137.0,60136.0,0.0024]
[1728580227126,0.734422,60137.0,60136.0,0.0024]
[1728580227515,0.734422,60137.0,60136.0,0.0004]
[1728580227909,0.083239,60125.0,60124.0,0.0004]
[1728580228109,0.083239,60125.0,60110.0,0.444059]
[1728580228110,0.083255,60114.0,60110.0,0.444059]
[1728580228327,0.2904,60111.0,60109.0,0.083261]
[1728580228509,0.0004,60110.0,60109.0,0.083261]
[1728580228716,0.0004,60110.0,60109.0,0.582341]